[Event "Late-Titled-Tuesday-Blitz-June-04-2024"]
[Site "Chess.com"]
[Date "2024.06.04"]
[Round "1"]
[White "Der_Honigdachs"]
[Black "dropstoneDP"]
[Result "1/2-1/2"]
[WhiteElo "2512"]
[BlackElo "2959"]
[TimeControl "180+1"]
[EndTime "14:09:55 PDT"]
[Termination "Game drawn by 50-move rule"]

1. e4 {[%clk 0:03:00]} 1... e5 {[%clk 0:02:59]} 2. Nf3 {[%clk 0:02:59.4]} 2...
Nf6 {[%clk 0:02:59.6]} 3. Nc3 {[%clk 0:02:54.3]} 3... Nc6 {[%clk 0:02:59.6]} 4.
d4 {[%clk 0:02:53.9]} 4... exd4 {[%clk 0:03:00.5]} 5. Nxd4 {[%clk 0:02:54.3]}
5... Bb4 {[%clk 0:03:01]} 6. Nxc6 {[%clk 0:02:52.7]} 6... bxc6 {[%clk
0:03:01.9]} 7. Bd3 {[%clk 0:02:52.2]} 7... O-O {[%clk 0:03:02.5]} 8. O-O {[%clk
0:02:51.1]} 8... d5 {[%clk 0:03:03]} 9. exd5 {[%clk 0:02:51.2]} 9... cxd5 {[%clk
0:03:03.1]} 10. h3 {[%clk 0:02:50]} 10... c6 {[%clk 0:03:03.5]} 11. Qf3 {[%clk
0:02:50.1]} 11... Bd6 {[%clk 0:03:01.6]} 12. Bg5 {[%clk 0:02:48.2]} 12... h6
{[%clk 0:03:01.3]} 13. Bxf6 {[%clk 0:02:46.2]} 13... Qxf6 {[%clk 0:03:02.2]} 14.
Qxf6 {[%clk 0:02:46.2]} 14... gxf6 {[%clk 0:03:03.1]} 15. Ne2 {[%clk 0:02:44]}
15... Bd7 {[%clk 0:03:02.5]} 16. b3 {[%clk 0:02:33.7]} 16... a5 {[%clk
0:02:56.9]} 17. Nd4 {[%clk 0:02:08.9]} 17... Be5 {[%clk 0:02:56.6]} 18. c3
{[%clk 0:02:00]} 18... c5 {[%clk 0:02:56.7]} 19. Ne2 {[%clk 0:01:57.3]} 19... a4
{[%clk 0:02:56.1]} 20. f4 {[%clk 0:01:53.6]} 20... Bd6 {[%clk 0:02:56.1]} 21. c4
{[%clk 0:01:48]} 21... axb3 {[%clk 0:02:55]} 22. axb3 {[%clk 0:01:48]} 22...
Rxa1 {[%clk 0:02:48.3]} 23. Rxa1 {[%clk 0:01:48.9]} 23... Rb8 {[%clk 0:02:48.7]}
24. Ra3 {[%clk 0:01:34.9]} 24... Be6 {[%clk 0:02:32.7]} 25. Kf2 {[%clk
0:01:27.6]} 25... f5 {[%clk 0:02:23.6]} 26. Ng3 {[%clk 0:01:21.4]} 26... Bxf4
{[%clk 0:02:18.6]} 27. Nxf5 {[%clk 0:01:20.9]} 27... Bc1 {[%clk 0:02:13.7]} 28.
Ra1 {[%clk 0:01:15.6]} 28... Bxf5 {[%clk 0:02:01.7]} 29. Bxf5 {[%clk 0:01:13.4]}
29... Bb2 {[%clk 0:02:02.3]} 30. Rd1 {[%clk 0:01:03.1]} 30... Bd4+ {[%clk
0:02:01.1]} 31. Ke2 {[%clk 0:00:58.2]} 31... dxc4 {[%clk 0:01:38.6]} 32. bxc4
{[%clk 0:00:57.2]} 32... Kg7 {[%clk 0:01:37.1]} 33. Be4 {[%clk 0:00:56]} 33...
Rb3 {[%clk 0:01:35.4]} 34. Bd5 {[%clk 0:00:54.3]} 34... f5 {[%clk 0:01:32.6]}
35. Rd3 {[%clk 0:00:54.3]} 35... Rb2+ {[%clk 0:01:31.6]} 36. Rd2 {[%clk
0:00:54.7]} 36... Rb8 {[%clk 0:01:30.1]} 37. Ra2 {[%clk 0:00:54.8]} 37... Kf6
{[%clk 0:01:25.6]} 38. Ra3 {[%clk 0:00:44.5]} 38... h5 {[%clk 0:01:24.1]} 39.
Kf3 {[%clk 0:00:36.9]} 39... h4 {[%clk 0:01:23.4]} 40. g3 {[%clk 0:00:33.3]}
40... hxg3 {[%clk 0:01:15.1]} 41. Kxg3 {[%clk 0:00:34.2]} 41... Rb1 {[%clk
0:01:11.2]} 42. Ra6+ {[%clk 0:00:32.5]} 42... Kg7 {[%clk 0:01:04.4]} 43. Ra7+
{[%clk 0:00:25.1]} 43... Kh6 {[%clk 0:01:01.7]} 44. Ra6+ {[%clk 0:00:25.2]}
44... Kg7 {[%clk 0:01:01.9]} 45. Ra7+ {[%clk 0:00:25.4]} 45... Kg6 {[%clk
0:01:02.4]} 46. Ra6+ {[%clk 0:00:25.7]} 46... Bf6 {[%clk 0:01:01.9]} 47. Rc6
{[%clk 0:00:22.2]} 47... Rb3+ {[%clk 0:01:01.2]} 48. Kg2 {[%clk 0:00:22.6]}
48... Rb2+ {[%clk 0:00:58.9]} 49. Kf3 {[%clk 0:00:22.4]} 49... Rb3+ {[%clk
0:00:49.2]} 50. Kg2 {[%clk 0:00:22.7]} 50... f4 {[%clk 0:00:45.6]} 51. Rxc5
{[%clk 0:00:19.7]} 51... Rg3+ {[%clk 0:00:44.2]} 52. Kh2 {[%clk 0:00:18.7]}
52... Be5 {[%clk 0:00:41.8]} 53. Rc6+ {[%clk 0:00:18.5]} 53... Kg7 {[%clk
0:00:41.2]} 54. Re6 {[%clk 0:00:19.1]} 54... Re3 {[%clk 0:00:37.6]} 55. Kg2
{[%clk 0:00:18.6]} 55... Rg3+ {[%clk 0:00:35.5]} 56. Kf2 {[%clk 0:00:18.5]}
56... Bd4+ {[%clk 0:00:35.8]} 57. Ke2 {[%clk 0:00:18.4]} 57... Rxh3 {[%clk
0:00:35.5]} 58. Re7+ {[%clk 0:00:17.1]} 58... Kf6 {[%clk 0:00:35.2]} 59. Rf7+
{[%clk 0:00:17.4]} 59... Ke5 {[%clk 0:00:32.8]} 60. Rf8 {[%clk 0:00:16.9]} 60...
Re3+ {[%clk 0:00:31.9]} 61. Kd2 {[%clk 0:00:16.9]} 61... Ra3 {[%clk 0:00:30.8]}
62. Kc2 {[%clk 0:00:17]} 62... Bc5 {[%clk 0:00:29.7]} 63. Rf7 {[%clk 0:00:15.4]}
63... Rg3 {[%clk 0:00:27.4]} 64. Kd2 {[%clk 0:00:15.5]} 64... Bd6 {[%clk
0:00:27.5]} 65. Kc2 {[%clk 0:00:15.1]} 65... Kd4 {[%clk 0:00:27.9]} 66. Rf5
{[%clk 0:00:12.8]} 66... Rh3 {[%clk 0:00:27.3]} 67. Rf7 {[%clk 0:00:12.6]} 67...
Rh2+ {[%clk 0:00:26]} 68. Kb3 {[%clk 0:00:12.5]} 68... Be5 {[%clk 0:00:26.6]}
69. Kb4 {[%clk 0:00:11.6]} 69... Rb2+ {[%clk 0:00:26.2]} 70. Ka5 {[%clk
0:00:10.3]} 70... Kc5 {[%clk 0:00:23.3]} 71. Ka6 {[%clk 0:00:09.5]} 71... Bb8
{[%clk 0:00:22.4]} 72. Rf6 {[%clk 0:00:08.6]} 72... Rb1 {[%clk 0:00:21.6]} 73.
Rc6+ {[%clk 0:00:08.3]} 73... Kd4 {[%clk 0:00:17.3]} 74. Rb6 {[%clk 0:00:09.2]}
74... Ra1+ {[%clk 0:00:16.9]} 75. Kb7 {[%clk 0:00:09.8]} 75... Be5 {[%clk
0:00:17.3]} 76. Re6 {[%clk 0:00:09.3]} 76... Ra3 {[%clk 0:00:16.2]} 77. Re7
{[%clk 0:00:07.9]} 77... Bd6 {[%clk 0:00:15.6]} 78. Rf7 {[%clk 0:00:08.8]} 78...
Kc5 {[%clk 0:00:15.6]} 79. Kc8 {[%clk 0:00:08.8]} 79... Ra1 {[%clk 0:00:14.1]}
80. Kd7 {[%clk 0:00:09.3]} 80... Re1 {[%clk 0:00:11.6]} 81. Rf5 {[%clk
0:00:08.8]} 81... Re7+ {[%clk 0:00:11.3]} 82. Kd8 {[%clk 0:00:09.4]} 82... Re3
{[%clk 0:00:09.5]} 83. Rf6 {[%clk 0:00:09.3]} 83... Be5 {[%clk 0:00:09.8]} 84.
Rf5 {[%clk 0:00:09.4]} 84... Kd6 {[%clk 0:00:10.4]} 85. Rf7 {[%clk 0:00:08.9]}
85... Rg3 {[%clk 0:00:09.7]} 86. Rd7+ {[%clk 0:00:09]} 86... Kc5 {[%clk
0:00:10.3]} 87. Rf7 {[%clk 0:00:09.5]} 87... Rg8+ {[%clk 0:00:09.3]} 88. Kd7
{[%clk 0:00:09.3]} 88... Bd6 {[%clk 0:00:09.3]} 89. Ke6 {[%clk 0:00:08.7]} 89...
Re8+ {[%clk 0:00:09.4]} 90. Kf5 {[%clk 0:00:09.2]} 90... Re3 {[%clk 0:00:09.5]}
91. Kg4 {[%clk 0:00:09.5]} 91... Rg3+ {[%clk 0:00:10]} 92. Kh4 {[%clk
0:00:09.2]} 92... Be5 {[%clk 0:00:09]} 93. Kh5 {[%clk 0:00:09.4]} 93... Kd4
{[%clk 0:00:09.4]} 94. Kh4 {[%clk 0:00:09]} 94... Bd6 {[%clk 0:00:09.5]} 95. Kh5
{[%clk 0:00:09.3]} 95... Ke3 {[%clk 0:00:08.9]} 96. Rf6 {[%clk 0:00:09.4]} 96...
Be5 {[%clk 0:00:07.1]} 97. Rf5 {[%clk 0:00:09.7]} 97... Kd4 {[%clk 0:00:07.7]}
98. Rf7 {[%clk 0:00:09.8]} 98... Rg1 {[%clk 0:00:08.1]} 99. Rf5 {[%clk
0:00:09.8]} 99... Rg7 {[%clk 0:00:08.2]} 100. Rf7 {[%clk 0:00:10]} 100... Rg3
{[%clk 0:00:08.7]} 101. Rf5 {[%clk 0:00:10.6]} 101... Bd6 {[%clk 0:00:09.2]}
102. Rf6 {[%clk 0:00:10.9]} 102... Kc5 {[%clk 0:00:09.5]} 103. Rf5 {[%clk
0:00:11.1]} 103... Re3 {[%clk 0:00:09.6]} 104. Rf6 {[%clk 0:00:11.6]} 104... Be5
{[%clk 0:00:09.8]} 105. Rf5 {[%clk 0:00:12.1]} 105... Kd6 {[%clk 0:00:10.4]}
106. Rf7 {[%clk 0:00:12.6]} 106... Rg3 {[%clk 0:00:10.6]} 107. Rf5 {[%clk
0:00:12.6]} 107... Rg1 {[%clk 0:00:10.2]} 1/2-1/2

[Event "Late-Titled-Tuesday-Blitz-June-04-2024"]
[Site "Chess.com"]
[Date "2024.06.04"]
[Round "2"]
[White "luca_va99"]
[Black "ChessSG1"]
[Result "0-1"]
[WhiteElo "2179"]
[BlackElo "2466"]
[TimeControl "180+1"]
[EndTime "14:11:47 PDT"]
[Termination "ChessSG1 won by resignation"]

1. e4 {[%clk 0:03:00.5]} 1... c5 {[%clk 0:02:59.8]} 2. Nf3 {[%clk 0:03:00.9]}
2... g6 {[%clk 0:02:59.7]} 3. d4 {[%clk 0:03:00.3]} 3... cxd4 {[%clk 0:03:00.6]}
4. Qxd4 {[%clk 0:03:00.5]} 4... Nf6 {[%clk 0:03:00.5]} 5. e5 {[%clk 0:03:00.7]}
5... Nc6 {[%clk 0:03:01.2]} 6. Qa4 {[%clk 0:03:00.4]} 6... Nd5 {[%clk
0:03:01.4]} 7. Qe4 {[%clk 0:03:01.1]} 7... Ndb4 {[%clk 0:03:02]} 8. a3 {[%clk
0:02:52.4]} 8... d5 {[%clk 0:03:01]} 9. exd6 {[%clk 0:02:52.5]} 9... Bf5 {[%clk
0:03:00.8]} 10. dxe7 {[%clk 0:02:48.9]} 10... Bxe7 {[%clk 0:02:57.7]} 11. Qc4
{[%clk 0:02:39.5]} 11... Nxc2+ {[%clk 0:02:55.9]} 12. Ke2 {[%clk 0:02:40.1]}
12... Nxa1 {[%clk 0:02:49.6]} 13. Qc3 {[%clk 0:02:39.5]} 13... O-O {[%clk
0:02:35.5]} 14. Bh6 {[%clk 0:02:38.7]} 14... Bf6 {[%clk 0:02:35.5]} 0-1

[Event "Late-Titled-Tuesday-Blitz-June-04-2024"]
[Site "Chess.com"]
[Date "2024.06.04"]
[Round "2"]
[White "malti"]
[Black "ZverevLev"]
[Result "0-1"]
[WhiteElo "2120"]
[BlackElo "2642"]
[TimeControl "180+1"]
[EndTime "14:12:48 PDT"]
[Termination "ZverevLev won by resignation"]

1. e4 {[%clk 0:03:00.9]} 1... e5 {[%clk 0:02:58.8]} 2. Nf3 {[%clk 0:03:01.1]}
2... Nc6 {[%clk 0:02:58.1]} 3. Bc4 {[%clk 0:03:01]} 3... Bc5 {[%clk 0:02:57.6]}
4. c3 {[%clk 0:03:00.4]} 4... Nf6 {[%clk 0:02:57.1]} 5. d3 {[%clk 0:03:00.1]}
5... d6 {[%clk 0:02:57]} 6. Bb3 {[%clk 0:02:59.2]} 6... a6 {[%clk 0:02:53.6]} 7.
Nbd2 {[%clk 0:02:57.4]} 7... Ba7 {[%clk 0:02:52.9]} 8. h3 {[%clk 0:02:55.8]}
8... O-O {[%clk 0:02:50.9]} 9. Nf1 {[%clk 0:02:55.9]} 9... d5 {[%clk 0:02:50.8]}
10. Qe2 {[%clk 0:02:55.9]} 10... Be6 {[%clk 0:02:45.1]} 11. Bc2 {[%clk
0:02:49.6]} 11... dxe4 {[%clk 0:02:39.8]} 12. dxe4 {[%clk 0:02:50.5]} 12... Nh5
{[%clk 0:02:31.8]} 13. Nxe5 {[%clk 0:02:19.1]} 13... Nxe5 {[%clk 0:02:32.7]} 14.
Qxh5 {[%clk 0:02:18.9]} 14... Nd3+ {[%clk 0:02:31.6]} 15. Bxd3 {[%clk
0:02:18.9]} 15... Qxd3 {[%clk 0:02:32.2]} 16. Qe2 {[%clk 0:02:17.1]} 16... Qd6
{[%clk 0:02:30.8]} 17. Ng3 {[%clk 0:02:14.9]} 17... Rfe8 {[%clk 0:02:30.2]} 18.
O-O {[%clk 0:02:14.1]} 18... Qxg3 {[%clk 0:02:29.2]} 0-1

[Event "Late-Titled-Tuesday-Blitz-June-04-2024"]
[Site "Chess.com"]
[Date "2024.06.04"]
[Round "2"]
[White "dropstoneDP"]
[Black "Michalczak"]
[Result "1-0"]
[WhiteElo "2960"]
[BlackElo "2512"]
[TimeControl "180+1"]
[EndTime "14:12:48 PDT"]
[Termination "dropstoneDP won by resignation"]

1. d4 {[%clk 0:03:00.9]} 1... Nf6 {[%clk 0:02:58.3]} 2. c4 {[%clk 0:02:51.8]}
2... e6 {[%clk 0:02:57.8]} 3. Nf3 {[%clk 0:02:50.6]} 3... d5 {[%clk 0:02:57.1]}
4. g3 {[%clk 0:02:50.6]} 4... Be7 {[%clk 0:02:55]} 5. Bg2 {[%clk 0:02:51.1]}
5... O-O {[%clk 0:02:55.5]} 6. Nc3 {[%clk 0:02:51.6]} 6... c5 {[%clk 0:02:51.6]}
7. cxd5 {[%clk 0:02:51.4]} 7... cxd4 {[%clk 0:02:45.2]} 8. Nxd4 {[%clk
0:02:51.2]} 8... Nxd5 {[%clk 0:02:45.6]} 9. Nxd5 {[%clk 0:02:51.6]} 9... exd5
{[%clk 0:02:46.5]} 10. O-O {[%clk 0:02:51.8]} 10... Nc6 {[%clk 0:02:46.4]} 11.
Be3 {[%clk 0:02:52.4]} 11... Nxd4 {[%clk 0:02:45.4]} 12. Bxd4 {[%clk 0:02:52.3]}
12... Be6 {[%clk 0:02:45.6]} 13. Rc1 {[%clk 0:02:52.6]} 13... Bf6 {[%clk
0:02:40.3]} 14. Qd2 {[%clk 0:02:52.4]} 14... Bxd4 {[%clk 0:02:34.3]} 15. Qxd4
{[%clk 0:02:53.3]} 15... Qb6 {[%clk 0:02:33.3]} 16. Qxb6 {[%clk 0:02:52.8]}
16... axb6 {[%clk 0:02:34.2]} 17. a3 {[%clk 0:02:53.6]} 17... Rac8 {[%clk
0:02:32.8]} 18. Rfd1 {[%clk 0:02:54]} 18... Rfd8 {[%clk 0:02:20.7]} 19. Rxc8
{[%clk 0:02:53.5]} 19... Rxc8 {[%clk 0:02:20.3]} 20. Bxd5 {[%clk 0:02:53.5]}
20... Rd8 {[%clk 0:02:06.5]} 21. Bb3 {[%clk 0:02:53.3]} 21... Rc8 {[%clk
0:01:47.1]} 22. Bxe6 {[%clk 0:02:52.8]} 22... fxe6 {[%clk 0:01:48]} 23. Rd6
{[%clk 0:02:52.8]} 1-0

[Event "Late-Titled-Tuesday-Blitz-June-04-2024"]
[Site "Chess.com"]
[Date "2024.06.04"]
[Round "2"]
[White "Pig-filth"]
[Black "WPWPWP-2015"]
[Result "0-1"]
[WhiteElo "2309"]
[BlackElo "2523"]
[TimeControl "180+1"]
[EndTime "14:13:26 PDT"]
[Termination "WPWPWP-2015 won by resignation"]

1. d4 {[%clk 0:03:00.9]} 1... d5 {[%clk 0:02:56.1]} 2. Bg5 {[%clk 0:03:00.1]}
2... Bg4 {[%clk 0:02:52.7]} 3. c4 {[%clk 0:02:53.8]} 3... c5 {[%clk 0:02:51.6]}
4. dxc5 {[%clk 0:02:39.9]} 4... d4 {[%clk 0:02:50.3]} 5. Nf3 {[%clk 0:02:33.3]}
5... Nc6 {[%clk 0:02:49.2]} 6. Nbd2 {[%clk 0:02:24.7]} 6... f6 {[%clk
0:02:46.8]} 7. Bh4 {[%clk 0:02:23.1]} 7... e5 {[%clk 0:02:45.4]} 8. b4 {[%clk
0:02:13.1]} 8... Bxf3 {[%clk 0:02:39.8]} 9. Nxf3 {[%clk 0:02:07.3]} 9... Nxb4
{[%clk 0:02:25.9]} 10. Qa4+ {[%clk 0:02:05.8]} 10... Nc6 {[%clk 0:02:25.5]} 11.
Nxe5 {[%clk 0:02:04.9]} 11... Qa5+ {[%clk 0:02:22.6]} 12. Qxa5 {[%clk
0:02:03.8]} 12... Nxa5 {[%clk 0:02:22.5]} 13. Nf3 {[%clk 0:01:57.2]} 13... O-O-O
{[%clk 0:02:20.7]} 14. e3 {[%clk 0:01:49.2]} 14... dxe3 {[%clk 0:02:10]} 15.
fxe3 {[%clk 0:01:50.1]} 15... Bxc5 {[%clk 0:02:09.1]} 16. Bf2 {[%clk 0:01:33.5]}
16... Bb4+ {[%clk 0:02:04.1]} 0-1

[Event "Late-Titled-Tuesday-Blitz-June-04-2024"]
[Site "Chess.com"]
[Date "2024.06.04"]
[Round "2"]
[White "MarceloPlaya"]
[Black "only_strong_moves"]
[Result "0-1"]
[WhiteElo "2350"]
[BlackElo "2684"]
[TimeControl "180+1"]
[EndTime "14:13:46 PDT"]
[Termination "only_strong_moves won by resignation"]

1. e4 {[%clk 0:03:00.9]} 1... e5 {[%clk 0:02:57.7]} 2. Nf3 {[%clk 0:03:00.1]}
2... Nc6 {[%clk 0:02:58.3]} 3. d4 {[%clk 0:02:59.5]} 3... exd4 {[%clk
0:02:58.3]} 4. Bc4 {[%clk 0:02:59.1]} 4... Nf6 {[%clk 0:02:59]} 5. Ng5 {[%clk
0:02:57.8]} 5... d5 {[%clk 0:02:41.8]} 6. exd5 {[%clk 0:02:56.6]} 6... Nxd5
{[%clk 0:02:35.7]} 7. Nxf7 {[%clk 0:02:51.8]} 7... Qe7+ {[%clk 0:02:34.9]} 8.
Qe2 {[%clk 0:02:38.9]} 8... Qxe2+ {[%clk 0:02:34]} 9. Kxe2 {[%clk 0:02:38.4]}
9... Kxf7 {[%clk 0:02:26.8]} 10. Bxd5+ {[%clk 0:02:37.9]} 10... Be6 {[%clk
0:02:27.5]} 11. Bxe6+ {[%clk 0:02:34]} 11... Kxe6 {[%clk 0:02:28.4]} 12. Re1
{[%clk 0:02:33.5]} 12... Bd6 {[%clk 0:02:23.6]} 13. g3 {[%clk 0:02:31]} 13...
Kd7 {[%clk 0:02:20.6]} 14. Kf1 {[%clk 0:02:28.4]} 14... Rae8 {[%clk 0:02:16.1]}
15. Bd2 {[%clk 0:02:23.6]} 15... Ne5 {[%clk 0:02:12.5]} 16. c3 {[%clk
0:02:02.6]} 16... d3 {[%clk 0:02:04.6]} 17. Re3 {[%clk 0:01:37.5]} 17... Bc5
{[%clk 0:01:58.1]} 18. Re4 {[%clk 0:01:28.7]} 18... Nf3 {[%clk 0:01:57.5]} 19.
b4 {[%clk 0:01:24.3]} 19... Rxe4 {[%clk 0:01:56.5]} 0-1

[Event "Late-Titled-Tuesday-Blitz-June-04-2024"]
[Site "Chess.com"]
[Date "2024.06.04"]
[Round "2"]
[White "ilushka"]
[Black "LikeWater"]
[Result "0-1"]
[WhiteElo "2388"]
[BlackElo "2735"]
[TimeControl "180+1"]
[EndTime "14:13:48 PDT"]
[Termination "LikeWater won by resignation"]

1. Nf3 {[%clk 0:03:00.9]} 1... Nf6 {[%clk 0:02:51.5]} 2. g3 {[%clk 0:03:01]}
2... d6 {[%clk 0:02:52.4]} 3. d4 {[%clk 0:03:00.5]} 3... g6 {[%clk 0:02:53.3]}
4. b3 {[%clk 0:02:59.1]} 4... Bg7 {[%clk 0:02:54.2]} 5. Bb2 {[%clk 0:02:59.6]}
5... O-O {[%clk 0:02:55.1]} 6. Bg2 {[%clk 0:02:59.4]} 6... Nbd7 {[%clk 0:02:56]}
7. O-O {[%clk 0:02:59]} 7... e5 {[%clk 0:02:56.9]} 8. dxe5 {[%clk 0:02:58.9]}
8... dxe5 {[%clk 0:02:57.8]} 9. Nxe5 {[%clk 0:02:58.4]} 9... Ng4 {[%clk
0:02:54.4]} 10. Nd3 {[%clk 0:02:44]} 10... Bxb2 {[%clk 0:02:53.5]} 11. Nxb2
{[%clk 0:02:44.9]} 11... Qf6 {[%clk 0:02:54.2]} 12. c3 {[%clk 0:02:41.6]} 12...
Nc5 {[%clk 0:02:48.8]} 13. Qd4 {[%clk 0:02:36.9]} 13... Qe7 {[%clk 0:02:44]} 14.
b4 {[%clk 0:02:23]} 14... Qxe2 {[%clk 0:02:36.5]} 15. Nd2 {[%clk 0:01:53.1]}
15... Ne6 {[%clk 0:02:30.3]} 16. Qd3 {[%clk 0:01:52]} 16... Qxd3 {[%clk
0:02:30.3]} 17. Nxd3 {[%clk 0:01:52.9]} 17... Rd8 {[%clk 0:02:30.8]} 18. Be4
{[%clk 0:01:17.1]} 18... f5 {[%clk 0:02:31]} 0-1

[Event "Late-Titled-Tuesday-Blitz-June-04-2024"]
[Site "Chess.com"]
[Date "2024.06.04"]
[Round "2"]
[White "ulises2013"]
[Black "Caracal3000"]
[Result "1-0"]
[WhiteElo "2928"]
[BlackElo "2584"]
[TimeControl "180+1"]
[EndTime "14:14:01 PDT"]
[Termination "ulises2013 won by resignation"]

1. e4 {[%clk 0:03:00.9]} 1... e5 {[%clk 0:02:59.9]} 2. g3 {[%clk 0:03:00.9]}
2... Nc6 {[%clk 0:02:59.7]} 3. Bg2 {[%clk 0:03:00.9]} 3... g6 {[%clk 0:02:58.8]}
4. Ne2 {[%clk 0:03:01.3]} 4... Bg7 {[%clk 0:02:59.4]} 5. c3 {[%clk 0:03:00.8]}
5... Nge7 {[%clk 0:02:59.2]} 6. d4 {[%clk 0:03:01.1]} 6... d6 {[%clk 0:02:59.5]}
7. O-O {[%clk 0:03:00.9]} 7... O-O {[%clk 0:02:59.8]} 8. d5 {[%clk 0:03:00.6]}
8... Nb8 {[%clk 0:02:59.6]} 9. c4 {[%clk 0:03:01.1]} 9... c5 {[%clk 0:02:58.1]}
10. Nbc3 {[%clk 0:03:00.9]} 10... a6 {[%clk 0:02:56.9]} 11. a4 {[%clk
0:03:00.6]} 11... b6 {[%clk 0:02:57.1]} 12. h3 {[%clk 0:03:00.3]} 12... f5
{[%clk 0:02:55.1]} 13. f4 {[%clk 0:02:58.9]} 13... Nd7 {[%clk 0:02:48.2]} 14.
Kh2 {[%clk 0:02:59.1]} 14... Ra7 {[%clk 0:02:30.3]} 15. Qc2 {[%clk 0:02:57.5]}
15... Rf7 {[%clk 0:02:00.6]} 16. Bd2 {[%clk 0:02:57.5]} 16... Qf8 {[%clk
0:02:00.8]} 17. Rae1 {[%clk 0:02:57.1]} 17... exf4 {[%clk 0:01:52]} 18. Nxf4
{[%clk 0:02:57]} 18... Ne5 {[%clk 0:01:47.5]} 19. b3 {[%clk 0:02:50.7]} 19...
fxe4 {[%clk 0:01:37.9]} 20. Nxe4 {[%clk 0:02:51.6]} 20... Bf5 {[%clk 0:01:37.7]}
21. Qd1 {[%clk 0:02:41.4]} 21... Bxe4 {[%clk 0:01:37.9]} 22. Bxe4 {[%clk
0:02:42.3]} 22... Bh6 {[%clk 0:01:03.6]} 23. Ne6 {[%clk 0:02:25.4]} 1-0

[Event "Late-Titled-Tuesday-Blitz-June-04-2024"]
[Site "Chess.com"]
[Date "2024.06.04"]
[Round "2"]
[White "VladimirBugayev"]
[Black "szachmistrz2500"]
[Result "1-0"]
[WhiteElo "2315"]
[BlackElo "2500"]
[TimeControl "180+1"]
[EndTime "14:14:16 PDT"]
[Termination "VladimirBugayev won by resignation"]

1. e4 {[%clk 0:03:00.9]} 1... e6 {[%clk 0:02:58.9]} 2. d4 {[%clk 0:03:00.7]}
2... d5 {[%clk 0:02:58.6]} 3. Bd3 {[%clk 0:03:01.5]} 3... a6 {[%clk 0:02:57.8]}
4. Ne2 {[%clk 0:02:59.9]} 4... Nd7 {[%clk 0:02:54.8]} 5. O-O {[%clk 0:02:55.7]}
5... dxe4 {[%clk 0:02:52.2]} 6. Bxe4 {[%clk 0:02:55.6]} 6... Ngf6 {[%clk
0:02:51.7]} 7. Bf3 {[%clk 0:02:56.2]} 7... Be7 {[%clk 0:02:50.5]} 8. Bf4 {[%clk
0:02:50]} 8... Nd5 {[%clk 0:02:49.3]} 9. Bg3 {[%clk 0:02:42.1]} 9... Bd6 {[%clk
0:02:49.2]} 10. c4 {[%clk 0:02:41.3]} 10... N5f6 {[%clk 0:02:47.4]} 11. Nbc3
{[%clk 0:02:36.3]} 11... Bxg3 {[%clk 0:02:46.1]} 12. hxg3 {[%clk 0:02:31.1]}
12... O-O {[%clk 0:02:47]} 13. g4 {[%clk 0:02:30.9]} 13... h6 {[%clk 0:02:44.2]}
14. Qd2 {[%clk 0:02:30.2]} 14... b5 {[%clk 0:02:41.6]} 15. Bxa8 {[%clk
0:02:28.2]} 15... Nb6 {[%clk 0:02:38.8]} 16. Bf3 {[%clk 0:02:21.7]} 16... Nxc4
{[%clk 0:02:38.5]} 17. Qc2 {[%clk 0:02:17.4]} 17... Bd7 {[%clk 0:02:33.8]} 18.
b3 {[%clk 0:02:14]} 18... Nd6 {[%clk 0:02:33.2]} 19. Qd2 {[%clk 0:02:10.9]}
19... Qb8 {[%clk 0:02:33.1]} 20. g5 {[%clk 0:02:09]} 20... hxg5 {[%clk
0:02:32.5]} 21. Qxg5 {[%clk 0:02:09.9]} 21... Qb6 {[%clk 0:02:31.6]} 22. Rfd1
{[%clk 0:02:06.6]} 22... Rc8 {[%clk 0:02:29]} 23. Rac1 {[%clk 0:02:03.5]} 23...
Nf5 {[%clk 0:02:28.7]} 24. d5 {[%clk 0:01:59.9]} 24... e5 {[%clk 0:02:28.1]} 25.
Ng3 {[%clk 0:01:55.3]} 25... Nd4 {[%clk 0:02:27.2]} 26. Nge4 {[%clk 0:01:47.1]}
26... Nxf3+ {[%clk 0:02:24.2]} 27. gxf3 {[%clk 0:01:46.5]} 27... Nh7 {[%clk
0:02:24]} 28. Qg3 {[%clk 0:01:41.1]} 28... Re8 {[%clk 0:02:21.2]} 29. d6 {[%clk
0:01:38.6]} 29... c6 {[%clk 0:02:09]} 30. Ng5 {[%clk 0:01:36.3]} 30... Nf6
{[%clk 0:02:08]} 31. Nce4 {[%clk 0:01:36]} 31... Nh5 {[%clk 0:02:05]} 32. Qh4
{[%clk 0:01:33.3]} 32... g6 {[%clk 0:02:05.3]} 33. Nc5 {[%clk 0:01:32.5]} 33...
Qd8 {[%clk 0:02:04.4]} 34. Nxd7 {[%clk 0:01:22.1]} 34... Qxd7 {[%clk 0:02:04.5]}
35. Ne4 {[%clk 0:01:22.8]} 35... Re6 {[%clk 0:02:01.4]} 36. Nc5 {[%clk
0:01:20.8]} 1-0

[Event "Late-Titled-Tuesday-Blitz-June-04-2024"]
[Site "Chess.com"]
[Date "2024.06.04"]
[Round "2"]
[White "DreamsAreFake"]
[Black "giovannibrandao7"]
[Result "1-0"]
[WhiteElo "2682"]
[BlackElo "2336"]
[TimeControl "180+1"]
[EndTime "14:14:20 PDT"]
[Termination "DreamsAreFake won by resignation"]

1. Nf3 {[%clk 0:03:00.9]} 1... Nf6 {[%clk 0:02:59.7]} 2. g3 {[%clk 0:03:00.1]}
2... g6 {[%clk 0:03:00.3]} 3. Bg2 {[%clk 0:02:58.7]} 3... Bg7 {[%clk 0:03:01]}
4. O-O {[%clk 0:02:59.1]} 4... O-O {[%clk 0:03:01.6]} 5. d4 {[%clk 0:02:59.5]}
5... d5 {[%clk 0:03:01.5]} 6. c4 {[%clk 0:02:59.5]} 6... c6 {[%clk 0:03:01.8]}
7. cxd5 {[%clk 0:02:57.3]} 7... cxd5 {[%clk 0:03:01]} 8. Nc3 {[%clk 0:02:58.2]}
8... Nc6 {[%clk 0:03:00.9]} 9. Ne5 {[%clk 0:02:58.5]} 9... Bf5 {[%clk
0:02:58.6]} 10. Nxc6 {[%clk 0:02:57.6]} 10... bxc6 {[%clk 0:02:58.6]} 11. Bf4
{[%clk 0:02:58.5]} 11... Re8 {[%clk 0:02:25]} 12. Rc1 {[%clk 0:02:54.2]} 12...
Qb6 {[%clk 0:02:17.2]} 13. Na4 {[%clk 0:02:54.1]} 13... Qa6 {[%clk 0:02:12.3]}
14. Be5 {[%clk 0:02:52.8]} 14... Nd7 {[%clk 0:02:09.3]} 15. Bxg7 {[%clk
0:02:52.3]} 15... Kxg7 {[%clk 0:02:10.2]} 16. b3 {[%clk 0:02:51.8]} 16... Rac8
{[%clk 0:02:02.8]} 17. Qd2 {[%clk 0:02:46.6]} 17... f6 {[%clk 0:01:53]} 18. e3
{[%clk 0:02:39.8]} 18... Be6 {[%clk 0:01:38.3]} 19. Rc3 {[%clk 0:02:38.9]} 19...
Bf7 {[%clk 0:01:25.7]} 20. Rfc1 {[%clk 0:02:38.8]} 20... e5 {[%clk 0:01:20.4]}
21. h4 {[%clk 0:02:32.8]} 21... e4 {[%clk 0:00:50.3]} 22. Nc5 {[%clk 0:02:26.8]}
22... Nxc5 {[%clk 0:00:49.6]} 23. Rxc5 {[%clk 0:02:27.7]} 23... Qb7 {[%clk
0:00:43.4]} 24. Bf1 {[%clk 0:02:23.9]} 24... f5 {[%clk 0:00:41.6]} 25. Qa5
{[%clk 0:02:23.6]} 25... Be6 {[%clk 0:00:39.7]} 26. Ba6 {[%clk 0:02:23]} 1-0